bitfinex/quotes_BTCUSD_20250917
["timestamp","ask_amount","ask_price","bid_price","bid_amount"]
[1758138687305,0.00603613,115850.0,115840.0,0.45261038]
[1758138687512,0.00603613,115850.0,115840.0,0.17365038]
[1758138689326,0.67836524,115850.0,115840.0,0.17365038]
[1758138689532,0.95499978,115850.0,115840.0,0.17365038]
[1758138689745,0.28697067,115850.0,115840.0,0.17365038]
[1758138689954,1.04562945,115850.0,115840.0,0.17365038]
[1758138690192,1.07047945,115850.0,115840.0,0.17365038]
[1758138690407,1.24311648,115850.0,115840.0,0.17365193]
[1758138690620,1.24311648,115850.0,115840.0,0.001]
[1758138690831,1.24311648,115850.0,115830.0,0.18130017]
[1758138691043,0.78350878,115840.0,115830.0,0.1814219]
[1758138691265,0.78956945,115840.0,115830.0,0.1814219]
[1758138691501,0.97324566,115840.0,115830.0,0.1814219]
[1758138691724,0.97324566,115840.0,115830.0,0.00012173]
[1758138691921,0.80059373,115840.0,115830.0,0.00012173]
[1758138692125,0.12154034,115840.0,115830.0,0.17278856]
[1758138692327,0.09133034,115840.0,115830.0,0.17278856]
[1758138692562,0.37009034,115840.0,115830.0,0.17278856]
[1758138693356,0.36402967,115840.0,115830.0,0.17278856]
[1758138693833,0.36402967,115840.0,115830.0,0.20819766]
[1758138694273,0.36394967,115840.0,115830.0,0.20919766]
[1758138694504,0.36394967,115840.0,115830.0,0.20819766]
[1758138694729,0.62925935,115860.0,115850.0,0.17263703]
[1758138694947,1.00137047,115860.0,115850.0,0.17263703]
[1758138695169,1.39286958,115860.0,115850.0,0.17263703]
[1758138695422,0.72269047,115860.0,115850.0,0.17263703]
[1758138695656,0.99923047,115860.0,115850.0,0.17263703]
[1758138695872,1.67150958,115860.0,115850.0,0.17263703]
[1758138696732,1.6715122,115860.0,115850.0,0.17263703]
[1758138696945,1.6976622,115860.0,115850.0,0.17263703]
[1758138697785,1.6976622,115860.0,115850.0,0.25763703]
[1758138697925,1.02748309,115860.0,115850.0,0.25763703]
[1758138698134,1.6976622,115860.0,115850.0,0.25763703]
[1758138698333,1.69159813,115860.0,115850.0,0.25763703]
[1758138698593,1.66544813,115860.0,115850.0,0.25763703]
[1758138698717,1.66842813,115860.0,115850.0,0.25763703]
[1758138698943,1.69159813,115860.0,115850.0,0.25763703]
[1758138702472,1.69131813,115860.0,115850.0,0.25763703]
[1758138702921,1.66814813,115860.0,115850.0,0.25763703]
[1758138703141,1.69131813,115860.0,115850.0,0.25763703]
[1758138704440,1.69131813,115860.0,115850.0,0.085]
[1758138704441,1.86394026,115860.0,115850.0,0.085]
[1758138707282,2.21000769,115860.0,115850.0,0.085]
[1758138708052,1.93164769,115860.0,115850.0,0.085]
[1758138708348,2.21100769,115860.0,115850.0,0.085]
[1758138709606,2.21000769,115860.0,115850.0,0.085]
[1758138709764,2.21300769,115860.0,115850.0,0.085]
[1758138710033,2.24315959,115860.0,115850.0,0.085]
[1758138712786,1.96479959,115860.0,115850.0,0.085]
[1758138713201,2.24315959,115860.0,115850.0,0.085]
[1758138718261,2.25929884,115860.0,115850.0,0.085]
[1758138720441,2.25928282,115860.0,115850.0,0.085]
[1758138722573,2.25322633,115860.0,115850.0,0.085]
[1758138723804,2.23709216,115860.0,115850.0,0.085]
[1758138724329,2.25927517,115860.0,115850.0,0.08177625]
[1758138725237,0.20280383,115840.0,115830.0,0.00012173]
[1758138725465,2.00620163,115840.0,115830.0,0.00012173]
[1758138725661,2.00819163,115840.0,115830.0,0.00012173]
[1758138725800,2.03467163,115840.0,115830.0,0.00012173]
[1758138726036,2.10005095,115840.0,115830.0,0.00012173]
[1758138727040,2.44005095,115840.0,115830.0,0.00112173]
[1758138727463,2.44005095,115840.0,115830.0,0.00012173]
[1758138727672,2.44405095,115840.0,115830.0,0.00012173]
[1758138727874,2.46017931,115840.0,115830.0,0.00012173]
[1758138728097,2.46017477,115840.0,115830.0,0.00012173]
[1758138728299,2.46017477,115840.0,115830.0,1e-08]
[1758138730299,2.18177477,115840.0,115830.0,1e-08]
[1758138730516,1.78999566,115840.0,115830.0,1e-08]
[1758138730948,1.77387184,115840.0,115830.0,1e-08]
[1758138731372,1.78998976,115840.0,115830.0,1e-08]
[1758138731584,2.46016887,115840.0,115830.0,1e-08]
[1758138734869,2.18176887,115840.0,115830.0,1e-08]
[1758138735073,1.77387184,115840.0,115830.0,1e-08]
[1758138735272,1.79001148,115840.0,115830.0,1e-08]
[1758138736108,1.78601148,115840.0,115830.0,1e-08]
[1758138736478,1.78801148,115840.0,115830.0,1e-08]
[1758138736702,2.45819059,115840.0,115830.0,1e-08]
[1758138738077,2.58078336,115840.0,115830.0,1e-08]
[1758138738282,1.21304258,115800.0,115790.0,0.06821573]
[1758138738497,1.67608216,115800.0,115790.0,0.0682969]
[1758138738695,1.72068082,115800.0,115790.0,0.0682969]
[1758138738906,1.72068082,115800.0,115790.0,8.117e-05]
[1758138740090,1.73125062,115800.0,115790.0,8.117e-05]
[1758138740694,1.79590077,115800.0,115790.0,8.117e-05]
[1758138743543,1.12567979,115800.0,115790.0,8.117e-05]
[1758138743918,1.7958589,115800.0,115790.0,8.117e-05]
[1758138744771,1.4940889,115800.0,115790.0,8.117e-05]
[1758138744954,1.7958989,115800.0,115790.0,8.117e-05]
[1758138745468,1.4889889,115800.0,115790.0,8.117e-05]
[1758138745689,1.7958989,115800.0,115790.0,8.117e-05]
[1758138747827,2.20411669,115800.0,115790.0,8.117e-05]
[1758138751363,0.17275632,115770.0,115760.0,0.18180796]
[1758138751582,1.17507435,115770.0,115760.0,0.00044712]
[1758138751765,1.17507435,115770.0,115760.0,0.17321837]
[1758138752002,1.17507435,115770.0,115760.0,0.00044712]
[1758138752212,0.91271355,115770.0,115760.0,0.00044712]
[1758138752454,1.19115355,115770.0,115760.0,0.00044712]
[1758138752907,1.22338545,115770.0,115760.0,0.00244712]
[1758138753120,1.22662545,115770.0,115760.0,0.00244712]
[1758138753376,1.59038545,115770.0,115760.0,0.00244712]
[1758138753601,2.1295839,115770.0,115760.0,0.00044712]
[1758138754488,1.59038545,115770.0,115760.0,0.00044712]
[1758138755204,1.56338545,115770.0,115760.0,0.00044712]
[1758138755424,1.62541164,115770.0,115760.0,0.00044712]
[1758138755650,1.62741164,115770.0,115760.0,0.00044712]
[1758138755833,1.62541164,115770.0,115760.0,0.00044712]
[1758138756057,1.62741164,115770.0,115760.0,0.00044712]
[1758138756277,1.62949164,115770.0,115760.0,0.00044712]
[1758138756726,1.63273164,115770.0,115760.0,0.00044712]
[1758138756961,1.65649164,115770.0,115760.0,0.00044712]
[1758138758562,2.19569009,115770.0,115760.0,0.00044712]
[1758138759008,1.65649164,115770.0,115760.0,0.00044712]
[1758138759223,1.63437874,115770.0,115760.0,0.00044712]
[1758138759448,1.65651053,115770.0,115760.0,0.00044712]
[1758138761730,1.35431053,115770.0,115760.0,0.00044712]
[1758138761950,1.62743053,115770.0,115760.0,0.00044712]
[1758138762827,1.62951053,115770.0,115760.0,0.00044712]
[1758138763035,1.62951747,115770.0,115760.0,0.00044712]
[1758138763251,1.34899747,115770.0,115760.0,0.00044712]
[1758138763456,1.62741991,115770.0,115760.0,0.00044712]
[1758138764505,1.62541991,115770.0,115760.0,0.00044712]
[1758138766893,1.62749991,115770.0,115760.0,0.00044712]
[1758138767101,1.63073991,115770.0,115760.0,0.00044712]
[1758138767506,1.61462163,115770.0,115760.0,0.00044712]
[1758138767710,1.63078268,115770.0,115760.0,0.00044712]
[1758138768358,2.19374113,115770.0,115760.0,0.00044712]
[1758138768763,1.28132005,115760.0,115750.0,0.0004]
[1758138768943,1.66733458,115760.0,115750.0,0.0004]
[1758138769307,1.67265458,115760.0,115750.0,0.0004]
[1758138769717,2.03641458,115760.0,115750.0,0.0004]
[1758138772146,2.03941458,115760.0,115750.0,0.0004]
[1758138772358,2.03641458,115760.0,115750.0,0.0004]
[1758138772792,1.76001458,115760.0,115750.0,0.0004]
[1758138773018,2.00929458,115760.0,115750.0,0.0004]
[1758138773462,1.47009613,115760.0,115750.0,0.0004]
[1758138773681,1.47009613,115760.0,115750.0,0.17318617]
[1758138773895,1.26717298,115760.0,115750.0,0.17318617]
[1758138774121,0.64881298,115760.0,115750.0,0.17318617]
[1758138774341,0.92717298,115760.0,115750.0,0.17318617]
[1758138774553,0.64881298,115760.0,115750.0,0.17318617]
[1758138774764,0.38798614,115760.0,115750.0,0.17318617]
[1758138775002,0.10962614,115760.0,115750.0,0.17318617]
[1758138775158,0.38798614,115760.0,115750.0,0.17318617]
[1758138775388,0.38598614,115760.0,115750.0,0.17318617]
[1758138775600,0.92518459,115760.0,115750.0,0.17318617]
[1758138776344,0.92518459,115760.0,115750.0,0.17518617]
[1758138776510,0.64682459,115760.0,115750.0,0.17518617]
[1758138776684,0.92518459,115760.0,115750.0,0.17518617]
[1758138777837,0.10762614,115760.0,115750.0,0.17518617]
[1758138778048,0.64682459,115760.0,115750.0,0.17518617]
[1758138778254,0.90901193,115760.0,115750.0,0.17518617]
[1758138778461,0.36977348,115760.0,115750.0,0.17518617]
[1758138778680,0.90897193,115760.0,115750.0,0.17518617]
[1758138780316,0.36977348,115760.0,115750.0,0.17518617]
[1758138780745,0.90897193,115760.0,115750.0,0.17518617]
[1758138781599,0.36977348,115760.0,115750.0,0.17518617]
[1758138781822,0.90897193,115760.0,115750.0,0.17518617]
[1758138784674,0.09145348,115760.0,115750.0,0.17518617]
[1758138784898,0.36973348,115760.0,115750.0,0.17518617]
[1758138785123,0.09145348,115760.0,115750.0,0.17518617]
[1758138785346,0.36973348,115760.0,115750.0,0.17518617]
[1758138785559,0.36973348,115760.0,115750.0,0.20114261]
[1758138785991,0.09145348,115760.0,115750.0,0.20114261]
[1758138786203,0.36973348,115760.0,115750.0,0.20114261]
[1758138786408,0.36369059,115760.0,115750.0,0.20114261]
[1758138788383,0.08541059,115760.0,115750.0,0.20114261]
[1758138788614,0.00014092,115760.0,115750.0,0.77775533]
[1758138788826,0.00014092,115760.0,115750.0,0.23855688]
[1758138789034,0.00014092,115760.0,115750.0,0.20114261]
[1758138789695,0.53933937,115760.0,115750.0,0.20114261]
[1758138790605,0.27838092,115760.0,115750.0,0.20114261]
[1758138791740,0.90284904,115760.0,115750.0,0.20114261]
[1758138793467,0.36365059,115760.0,115750.0,0.20114261]
[1758138794096,0.90284904,115760.0,115750.0,0.20114261]
[1758138796567,0.62460904,115760.0,115750.0,0.20114261]
[1758138796786,0.90280904,115760.0,115750.0,0.20114261]
[1758138796967,0.36361059,115760.0,115750.0,0.20114261]
[1758138797179,0.90280904,115760.0,115750.0,0.20114261]
[1758138797636,0.36361059,115760.0,115750.0,0.23855688]
[1758138797878,0.36357059,115760.0,115750.0,0.23855688]
[1758138798125,0.36357059,115760.0,115750.0,0.20114261]
[1758138798690,0.90276904,115760.0,115750.0,0.20114261]
[1758138799923,0.77761001,115760.0,115750.0,0.20114261]
[1758138800949,0.49945001,115760.0,115750.0,0.20114261]
[1758138801166,0.77757001,115760.0,115750.0,0.20114261]
[1758138801838,0.77757001,115760.0,115750.0,0.27996082]
[1758138802047,0.77757001,115760.0,115750.0,0.20114261]
[1758138802229,0.36353059,115760.0,115750.0,0.20114261]
[1758138802654,0.77757001,115760.0,115750.0,0.20114261]
[1758138805367,0.36353059,115760.0,115750.0,0.20114261]
[1758138805596,0.77757001,115760.0,115750.0,0.20114261]
[1758138808404,0.36353059,115760.0,115750.0,0.21476862]
[1758138808627,0.77757001,115760.0,115750.0,0.21476862]
[1758138809662,0.77757001,115760.0,115750.0,0.20114261]
[1758138809866,0.77756143,115760.0,115750.0,0.20114261]
[1758138810089,0.36353059,115760.0,115750.0,0.20114261]
[1758138810287,0.77756143,115760.0,115750.0,0.20114261]
[1758138810779,0.36353059,115760.0,115750.0,0.20114261]
[1758138810929,0.77756143,115760.0,115750.0,0.20114261]
[1758138814167,0.77756143,115760.0,115750.0,0.19914261]
[1758138814380,0.77962143,115760.0,115750.0,0.17318617]
[1758138814620,0.78284143,115760.0,115750.0,0.17418617]
[1758138814843,0.80611143,115760.0,115750.0,0.17318617]
[1758138815046,0.78284143,115760.0,115750.0,0.17518617]
[1758138815251,0.77756143,115760.0,115750.0,0.17518617]
[1758138816337,0.36353059,115760.0,115750.0,0.19690456]
[1758138816556,0.49944143,115760.0,115750.0,0.17318617]
[1758138816771,0.77744143,115760.0,115750.0,0.17418617]
[1758138817008,0.49944143,115760.0,115750.0,0.17318617]
[1758138817232,0.77744143,115760.0,115750.0,0.17318617]
[1758138817444,0.36341059,115760.0,115750.0,0.17518617]
[1758138817658,0.36341059,115760.0,115750.0,0.21260061]
[1758138817863,0.08541059,115760.0,115750.0,0.21260061]
[1758138818082,0.00014092,115760.0,115750.0,0.23855467]
[1758138818282,0.00014092,115760.0,115750.0,0.20114023]
[1758138820341,0.00014092,115760.0,115750.0,0.95517107]
[1758138822508,1e-08,115760.0,115750.0,0.95517107]
[1758138823449,1e-08,115760.0,115750.0,0.95317107]
[1758138823687,1e-08,115760.0,115750.0,0.95717107]
[1758138823897,1e-08,115760.0,115750.0,1.04244074]
[1758138824111,1e-08,115760.0,115750.0,1.03844074]
[1758138824326,1e-08,115760.0,115750.0,1.04344074]
[1758138824832,1e-08,115760.0,115750.0,0.9073299]
[1758138825492,1e-08,115760.0,115750.0,0.97288972]
[1758138829981,1e-08,115760.0,115750.0,0.6294099]
[1758138830183,1e-08,115760.0,115750.0,0.9072899]
[1758138832657,1e-08,115760.0,115750.0,0.9022899]
[1758138832901,1e-08,115760.0,115750.0,0.9062899]
[1758138833106,1e-08,115760.0,115750.0,0.9022899]
[1758138833489,1e-08,115760.0,115750.0,1.32032074]
[1758138834773,1e-08,115760.0,115750.0,1.40559041]
[1758138836664,1e-08,115760.0,115750.0,1.40547041]
[1758138837422,1e-08,115760.0,115750.0,1.32020074]
[1758138840392,1e-08,115760.0,115750.0,0.9061699]
[1758138840601,1e-08,115760.0,115750.0,0.6284099]
[1758138840833,1e-08,115760.0,115750.0,0.9061299]
[1758138841606,1e-08,115760.0,115750.0,1.32016074]
[1758138845412,1e-08,115760.0,115750.0,1.40543041]
[1758138845618,1e-08,115760.0,115750.0,1.53558231]
[1758138846785,1e-08,115760.0,115750.0,1.53158231]
[1758138846988,1e-08,115760.0,115750.0,1.53758231]
[1758138847817,1e-08,115760.0,115750.0,2.32501315]
[1758138848029,0.06821573,115800.0,115790.0,0.17272648]
[1758138848030,0.06809668,115800.0,115790.0,0.17272648]
[1758138848275,0.06823783,115800.0,115790.0,0.48491192]
[1758138848509,0.00014115,115800.0,115790.0,0.48491192]
[1758138848718,0.00014115,115800.0,115790.0,0.51085787]
[1758138848932,0.00014115,115800.0,115790.0,1.26488871]
[1758138849137,0.00314115,115800.0,115790.0,1.26488871]
[1758138849968,0.00014115,115800.0,115790.0,1.26488871]
[1758138850195,1e-08,115800.0,115790.0,1.72891955]
[1758138850425,1e-08,115800.0,115790.0,1.72991955]
[1758138850660,0.63777799,115860.0,115830.0,0.18128733]
[1758138850897,0.63545601,115860.0,115850.0,0.17263703]
[1758138851356,0.72270568,115860.0,115850.0,0.17263703]
[1758138851578,0.72072568,115860.0,115850.0,0.17263703]
[1758138851804,1.12870104,115860.0,115850.0,0.17263703]
[1758138852025,0.7146702,115860.0,115850.0,0.17263703]
[1758138852252,1.13474692,115860.0,115850.0,0.17263703]
[1758138852479,1.13474692,115860.0,115850.0,0.20716593]
[1758138852687,0.72071608,115860.0,115850.0,0.20716593]
[1758138852892,1.13574692,115860.0,115850.0,0.20716593]
[1758138853108,1.12970104,115860.0,115850.0,0.20716593]
[1758138853343,1.13574301,115860.0,115850.0,0.20716593]
[1758138853605,1.13474301,115860.0,115850.0,0.20716593]
[1758138853831,1.13474301,115860.0,115850.0,0.17263703]
[1758138854019,0.72071217,115860.0,115850.0,0.17263703]
[1758138854431,1.39087454,115860.0,115850.0,0.17263703]
[1758138854877,0.72071217,115860.0,115850.0,0.17263703]
[1758138855080,1.39087454,115860.0,115850.0,0.17263703]
[1758138855297,1.39285454,115860.0,115850.0,0.17263703]
[1758138855723,1.39590454,115860.0,115850.0,0.17263703]
[1758138855963,1.39087454,115860.0,115850.0,0.17263703]
[1758138856643,0.72071217,115860.0,115850.0,0.17263703]
[1758138856870,1.39285454,115860.0,115850.0,0.17263703]
[1758138857292,0.72269217,115860.0,115850.0,0.17263703]
[1758138857533,1.39590454,115860.0,115850.0,0.17263703]
[1758138857756,1.41996454,115860.0,115850.0,0.17263703]
[1758138858357,1.41996454,115860.0,115840.0,0.17265193]
[1758138858576,0.02406,115850.0,115840.0,0.17265193]
[1758138858801,0.70529434,115850.0,115840.0,0.17265193]
[1758138859009,0.98725434,115850.0,115840.0,0.17265193]
[1758138859367,0.96014434,115850.0,115840.0,0.17265193]
[1758138859576,1.04541401,115850.0,115840.0,0.17265193]
[1758138859990,1.04343401,115850.0,115840.0,0.17265193]
[1758138860410,0.08526967,115850.0,115840.0,0.24150994]
[1758138860619,0.09130131,115850.0,115840.0,0.24150994]
[1758138861554,0.09130131,115850.0,115840.0,0.17265193]
[1758138861989,0.76146368,115850.0,115840.0,0.17265193]
[1758138862971,0.76344368,115850.0,115840.0,0.17265193]
[1758138863276,0.09130131,115850.0,115840.0,0.17265193]
[1758138863469,0.76344368,115850.0,115840.0,0.17265193]
[1758138863677,0.76649368,115850.0,115840.0,0.17265193]
[1758138863862,0.76344368,115850.0,115840.0,0.17265193]
[1758138864273,0.76146368,115850.0,115840.0,0.17265193]
[1758138866994,0.76344368,115850.0,115840.0,0.17265193]
[1758138867434,0.76146368,115850.0,115840.0,0.17265193]
[1758138867665,0.80665684,115850.0,115840.0,0.17265193]
[1758138868273,0.79055368,115850.0,115840.0,0.17265193]
[1758138868918,0.79155368,115850.0,115840.0,0.17265193]
[1758138869332,0.29402834,115850.0,115830.0,0.18128733]
[1758138869540,1.06410204,115840.0,115830.0,0.18128733]
[1758138869741,1.07211368,115840.0,115830.0,0.18128733]
[1758138869943,1.04302368,115840.0,115830.0,0.18128733]
[1758138870151,1.04500368,115840.0,115830.0,0.18128733]
[1758138870367,1.07211368,115840.0,115830.0,0.18128733]
[1758138871848,0.94047481,115840.0,115830.0,0.18128733]
[1758138872470,1.11312674,115840.0,115820.0,0.17263908]
[1758138872704,0.5641635,115830.0,115820.0,0.17263908]
[1758138872885,0.65546481,115830.0,115820.0,0.17263908]
[1758138873089,0.65752481,115830.0,115820.0,0.17263908]
[1758138873304,0.91094481,115830.0,115820.0,0.17263908]
[1758138874127,0.09130131,115830.0,115820.0,0.17263908]
[1758138874333,0.09230131,115830.0,115820.0,0.17263908]
[1758138874762,0.09130131,115830.0,115820.0,0.17263908]
[1758138875982,0.09130131,115830.0,115820.0,0.18684183]
[1758138875983,0.00603164,115830.0,115820.0,0.18684183]
[1758138876185,0.00603164,115830.0,115820.0,0.88186747]
[1758138876444,0.00603164,115830.0,115820.0,0.46836183]
[1758138876866,0.00603164,115830.0,115820.0,0.88186747]
[1758138877531,0.00603164,115830.0,115820.0,0.88386747]
[1758138878398,0.00603164,115830.0,115820.0,0.9098053]
[1758138881359,1.85040459,115860.0,115850.0,0.17263703]
[1758138881783,1.87298459,115860.0,115850.0,0.17263703]
[1758138882166,1.87498459,115860.0,115850.0,0.17263703]
[1758138882584,2.28849023,115860.0,115850.0,0.17263703]
[1758138883001,1.87498459,115860.0,115850.0,0.17263703]
[1758138883679,1.87498459,115860.0,115850.0,0.1814117]
[1758138883680,1.57104459,115860.0,115850.0,0.1814117]
[1758138883940,1.85244459,115860.0,115850.0,0.1814117]
[1758138884163,1.87502459,115860.0,115850.0,0.1814117]
[1758138884991,1.87302459,115860.0,115850.0,0.17263703]
[1758138885119,1.87402459,115860.0,115850.0,0.17263703]
[1758138885339,1.87400315,115860.0,115850.0,0.17263703]
[1758138887562,2.04662528,115860.0,115850.0,0.17263703]
[1758138887757,1.87400315,115860.0,115850.0,0.17263703]
[1758138888351,2.04662528,115860.0,115850.0,0.17263703]
[1758138888531,1.03083065,115860.0,115850.0,0.17263703]
[1758138888751,1.85784193,115860.0,115850.0,0.17263703]
[1758138889813,2.4439697,115860.0,115830.0,0.20723511]
[1758138889998,1.24051692,115840.0,115830.0,0.18130017]
[1758138890215,1.1990614,115840.0,115830.0,0.18130017]
[1758138890429,1.1990614,115840.0,115830.0,0.18987612]
[1758138890430,0.09133012,115840.0,115830.0,0.18987612]
[1758138890641,0.49877531,115840.0,115830.0,0.18987612]
[1758138890842,0.49877531,115840.0,115830.0,0.22958489]
[1758138891270,0.49877531,115840.0,115830.0,0.23158489]
[1758138891884,0.92345854,115840.0,115830.0,0.19187612]
[1758138892083,0.92345854,115840.0,115830.0,0.18330017]
[1758138892284,0.94603854,115840.0,115830.0,0.18330017]
[1758138892487,0.93998095,115840.0,115830.0,0.18330017]
[1758138893081,0.94603874,115840.0,115830.0,0.18330017]
[1758138893286,0.93998095,115840.0,115830.0,0.18330017]
[1758138893586,0.93998095,115840.0,115830.0,0.18130017]
[1758138894168,0.91740095,115840.0,115830.0,0.18130017]
[1758138894371,0.91434095,115840.0,115830.0,0.18130017]
[1758138894627,0.001,115840.0,115830.0,0.2175575]
[1758138894833,0.41450564,115840.0,115830.0,0.2175575]
[1758138896255,0.41450564,115840.0,115830.0,0.18130017]
[1758138896256,0.83007128,115840.0,115830.0,0.18130017]
[1758138896508,0.85571128,115840.0,115830.0,0.18130017]
[1758138896780,0.85471128,115840.0,115830.0,0.18130017]
[1758138897033,0.83213128,115840.0,115830.0,0.18130017]
[1758138897550,0.91740095,115840.0,115830.0,0.18130017]
[1758138897758,0.93998095,115840.0,115830.0,0.18130017]
[1758138898103,0.93998095,115840.0,115830.0,0.20565179]
[1758138898104,0.49877531,115840.0,115830.0,0.20565179]
[1758138898624,0.49967531,115840.0,115830.0,0.20565179]
[1758138898822,0.36696967,115840.0,115830.0,0.20565179]
[1758138899117,0.28186,115840.0,115830.0,0.20565179]
[1758138899300,0.69536564,115840.0,115830.0,0.20565179]
[1758138899523,0.69536564,115840.0,115830.0,0.18130017]
[1758138900362,0.0009,115840.0,115830.0,0.18130017]
[1758138900582,0.0009,115840.0,115830.0,1.28141556]
[1758138900793,0.62940053,115860.0,115850.0,0.17263703]
[1758138901000,0.62940053,115860.0,115850.0,0.90183022]
[1758138901205,0.62940053,115860.0,115850.0,1.24183022]
[1758138901663,0.62940053,115860.0,115850.0,1.26775965]
[1758138901882,0.23370535,115860.0,115850.0,0.85425401]
[1758138902095,0.1004,115880.0,115870.0,0.51260723]
[1758138902325,0.1004,115880.0,115870.0,1.28103449]
[1758138902549,0.1004,115880.0,115870.0,2.13950416]
[1758138903010,0.1004,115880.0,115870.0,1.72599852]
[1758138903479,0.1004,115880.0,115870.0,1.8182416]
[1758138905066,0.1004,115880.0,115870.0,1.8222416]
[1758138905297,0.63827381,115880.0,115870.0,1.5408416]
[1758138905557,0.1004,115880.0,115870.0,1.33809193]
[1758138907632,0.1004,115880.0,115870.0,1.26457031]
[1758138907633,0.63827381,115880.0,115870.0,1.26457031]
[1758138908068,0.1004,115880.0,115870.0,1.26457031]
[1758138908300,0.1004,115880.0,115870.0,1.26057031]
[1758138908515,0.1004,115880.0,115870.0,1.26357031]
[1758138908729,0.1004,115880.0,115870.0,1.88671379]
[1758138908861,0.1004,115880.0,115870.0,1.43110965]
[1758138909291,0.1004,115880.0,115870.0,1.43410965]
[1758138911479,1e-08,115880.0,115870.0,1.43410965]
[1758138911695,1e-08,115880.0,115870.0,1.83410965]
[1758138912144,1e-08,115880.0,115870.0,1.88410965]
[1758138912572,1e-08,115880.0,115870.0,1.93410965]
[1758138913682,0.53787382,115880.0,115870.0,1.88498965]
[1758138913907,0.53787382,115880.0,115870.0,1.83498965]
[1758138914088,0.53787382,115880.0,115870.0,1.88498965]
[1758138914329,1e-08,115880.0,115870.0,1.48498965]
[1758138915001,1e-08,115880.0,115870.0,1.20158965]
[1758138915222,1e-08,115880.0,115870.0,0.92429031]
[1758138915223,0.53787382,115880.0,115870.0,0.92429031]
[1758138915443,0.53787382,115880.0,115870.0,0.55109031]
[1758138915665,0.53787382,115880.0,115870.0,0.52516816]
[1758138915859,0.53994382,115880.0,115870.0,0.24192816]
[1758138916131,0.56250382,115880.0,115870.0,0.52512816]
[1758138916346,0.11312968,115880.0,115870.0,0.45880723]
[1758138916575,0.65100349,115880.0,115870.0,0.17560723]
[1758138917062,0.65100349,115880.0,115870.0,0.17260723]
[1758138917301,0.65100349,115880.0,115870.0,0.17460723]
[1758138917507,0.65100349,115880.0,115870.0,0.17260723]
[1758138918019,0.82359592,115880.0,115870.0,0.17260723]
[1758138918282,0.82359592,115880.0,115860.0,0.17260896]
[1758138918525,1.10454071,115870.0,115850.0,0.56438888]
[1758138918759,0.54317381,115860.0,115850.0,0.28126888]
[1758138918990,0.65100348,115860.0,115850.0,0.28126888]
[1758138919439,0.82362561,115860.0,115850.0,0.1]
[1758138919662,0.65100348,115860.0,115850.0,0.27263703]
[1758138919876,0.82362561,115860.0,115850.0,0.27263703]
[1758138920060,0.65100348,115860.0,115850.0,0.27263703]
[1758138920277,1.36149942,115860.0,115850.0,0.1]
[1758138920491,1.36149942,115860.0,115850.0,0.102]
[1758138920918,1.36149942,115860.0,115850.0,0.1]
[1758138920919,0.82362561,115860.0,115850.0,0.1]
[1758138921120,0.82562561,115860.0,115850.0,0.1]
[1758138921331,0.82562561,115860.0,115850.0,0.27263703]
[1758138921757,0.65300348,115860.0,115850.0,0.27263703]
[1758138921974,0.82562561,115860.0,115850.0,0.27263703]
[1758138922422,0.11512967,115860.0,115850.0,0.27263703]
[1758138922641,0.93600348,115860.0,115850.0,0.27263703]
[1758138922850,0.91013348,115860.0,115850.0,0.27263703]
[1758138923118,0.62514348,115860.0,115850.0,0.27263703]
[1758138923380,0.62721348,115860.0,115850.0,0.27263703]
[1758138923643,0.62521348,115860.0,115850.0,0.27263703]
[1758138923820,0.62621348,115860.0,115850.0,0.27263703]
[1758138924064,0.62414348,115860.0,115850.0,0.27263703]
[1758138924277,0.62521348,115860.0,115850.0,0.27263703]
[1758138924618,0.62314348,115860.0,115850.0,0.27263703]
[1758138924834,0.65100348,115860.0,115850.0,0.27263703]
[1758138925896,0.11312967,115860.0,115850.0,0.27263703]
[1758138926110,0.65100348,115860.0,115850.0,0.27263703]
[1758138926326,0.82362561,115860.0,115850.0,0.1]
[1758138926750,0.82462561,115860.0,115850.0,0.1]
[1758138926956,1.70149942,115860.0,115850.0,0.1]
[1758138927370,1.70249942,115860.0,115850.0,0.1]
[1758138927598,1.16462561,115860.0,115850.0,0.1]
[1758138929099,1.17065517,115860.0,115850.0,0.1]
[1758138930458,1.17065517,115860.0,115850.0,0.27263703]
[1758138930671,0.99803304,115860.0,115850.0,0.27263703]
[1758138930878,1.28191304,115860.0,115850.0,0.27263703]
[1758138931308,0.74403923,115860.0,115850.0,0.27263703]
[1758138931529,1.28191304,115860.0,115850.0,0.27263703]
[1758138931734,1.45453517,115860.0,115850.0,0.27263703]
[1758138931943,1.58699212,115860.0,115850.0,0.1]
[1758138933031,1.58698787,115860.0,115850.0,0.1]
[1758138933255,1.61713977,115860.0,115850.0,0.1]
[1758138939688,0.94680901,115860.0,115850.0,0.1]
[1758138939903,1.61713977,115860.0,115850.0,0.1]
[1758138940541,1.6332154,115860.0,115850.0,0.1]
[1758138941563,1.6322154,115860.0,115850.0,0.1]
[1758138941909,1.6352154,115860.0,115850.0,0.1]
[1758138942116,1.6322154,115860.0,115850.0,0.1]
[1758138942547,1.6362154,115860.0,115850.0,0.1]
[1758138943816,2.30654616,115860.0,115850.0,0.1]
[1758138944419,2.40654616,115860.0,115850.0,0.09675]
[1758138944660,2.39048135,115860.0,115850.0,0.09675]
[1758138944857,2.38252503,115860.0,115850.0,0.09675]
[1758138945131,2.43252503,115860.0,115850.0,0.09675]
[1758138945339,2.38252503,115860.0,115850.0,0.09675]
[1758138946001,2.43252503,115860.0,115850.0,0.09675]
[1758138946191,2.38252503,115860.0,115850.0,0.09675]
[1758138946439,2.43252503,115860.0,115850.0,0.09675]
[1758138946641,1.76219427,115860.0,115850.0,0.09675]
[1758138946853,2.38252503,115860.0,115850.0,0.09675]
[1758138947060,2.43252503,115860.0,115850.0,0.09675]
[1758138947262,2.38252503,115860.0,115850.0,0.09675]
[1758138947489,2.43252503,115860.0,115850.0,0.09675]
[1758138948160,2.38252503,115860.0,115850.0,0.09675]
[1758138948410,2.43252503,115860.0,115850.0,0.09675]
[1758138948850,2.38252503,115860.0,115850.0,0.09675]
[1758138949146,1.76219427,115860.0,115850.0,0.09675]
[1758138949571,2.43252503,115860.0,115850.0,0.09675]
[1758138949789,2.88152503,115860.0,115850.0,0.09675]
[1758138950236,2.21119427,115860.0,115850.0,0.09675]
[1758138950849,2.16119427,115860.0,115850.0,0.09675]
[1758138951097,2.88152503,115860.0,115850.0,0.09675]
[1758138951752,2.88152573,115860.0,115850.0,0.09675]
[1758138951979,1.15698421,115860.0,115850.0,0.09675]
[1758138952200,2.05457573,115860.0,115850.0,0.09675]
[1758138952702,2.08472763,115860.0,115850.0,0.09675]
[1758138952894,3.17833839,115860.0,115850.0,0.09675]
[1758138953152,2.50800763,115860.0,115850.0,0.09675]
[1758138953587,3.17833839,115860.0,115850.0,0.09675]
[1758138953803,3.17833839,115860.0,115850.0,0.08864897]
[1758138954264,0.54283364,115820.0,115810.0,0.06821573]
[1758138954497,1.69748724,115820.0,115810.0,0.06835691]